bitfinex/quotes_BTCUSD_20241130
["timestamp","ask_amount","ask_price","bid_price","bid_amount"]
[1732934798355,0.36662716,96674.0,96673.0,0.047]
[1732934798559,0.3569345,96674.0,96673.0,0.047]
[1732934798984,0.3569345,96674.0,96673.0,0.039]
[1732934799190,0.3569345,96674.0,96673.0,0.043]
[1732934799442,0.3569345,96674.0,96673.0,0.034]
[1732934801348,0.3569345,96674.0,96673.0,0.04047072]
[1732934801556,0.3569345,96674.0,96673.0,0.034]
[1732934801706,0.3569345,96674.0,96673.0,0.04047064]
[1732934802434,0.3569345,96674.0,96673.0,0.04047067]
[1732934804470,0.3569345,96674.0,96673.0,0.04047065]
[1732934807200,0.3569345,96674.0,96673.0,0.034]
[1732934807901,0.3569345,96674.0,96673.0,0.04047057]
[1732934808639,0.3569345,96674.0,96673.0,0.034]
[1732934812779,0.3569345,96674.0,96673.0,0.004]
[1732934814620,0.3569345,96674.0,96673.0,0.04047058]
[1732934815129,0.3569345,96674.0,96673.0,0.04047061]
[1732934816811,0.3569345,96674.0,96673.0,0.04047059]
[1732934819691,0.36661234,96674.0,96673.0,0.04047059]
[1732934819931,0.3569345,96674.0,96673.0,0.04047059]
[1732934820352,0.36661234,96674.0,96673.0,0.04047059]
[1732934821424,0.51661234,96674.0,96673.0,0.04047059]
[1732934821429,0.51661234,96674.0,96673.0,0.034]
[1732934821677,0.51661234,96674.0,96665.0,0.000865]
[1732934821678,0.41187195,96666.0,96665.0,0.000865]
[1732934821915,0.524395,96666.0,96665.0,0.000865]
[1732934822141,0.62722646,96666.0,96665.0,0.000865]
[1732934822583,0.61754862,96666.0,96665.0,0.000865]
[1732934822795,0.253457,96658.0,96657.0,0.0008651]
[1732934822995,0.52379272,96658.0,96657.0,0.0008651]
[1732934823238,0.238265,96651.0,96650.0,0.03]
[1732934823492,0.49111021,96651.0,96650.0,0.03]
[1732934824545,0.51232918,96651.0,96650.0,0.033]
[1732934824965,0.51332918,96651.0,96650.0,0.033]
[1732934826536,0.49211021,96651.0,96650.0,0.033]
[1732934827188,0.49211021,96651.0,96650.0,0.003]
[1732934827939,0.59556562,96651.0,96650.0,0.003]
[1732934828197,0.61856562,96651.0,96650.0,0.003]
[1732934828415,0.6282393,96651.0,96650.0,0.003]
[1732934828637,0.6282393,96651.0,96626.0,0.03]
[1732934828638,0.263478,96638.0,96626.0,0.03]
[1732934828927,0.36694716,96638.0,96626.0,0.03]
[1732934829140,0.49014716,96638.0,96626.0,0.03]
[1732934829596,0.49014716,96638.0,96619.0,0.03]
[1732934829835,0.49014716,96638.0,96621.0,0.03]
[1732934830069,0.49014716,96638.0,96637.0,0.00232932]
[1732934830961,0.49214716,96638.0,96637.0,0.00232932]
[1732934831633,0.49214716,96638.0,96637.0,0.00332932]
[1732934835454,0.17280038,96638.0,96637.0,0.00332932]
[1732934835682,0.01280038,96638.0,96637.0,0.00332932]
[1732934835902,0.01280038,96638.0,96637.0,0.03980182]
[1732934836363,0.01280038,96638.0,96637.0,0.14328182]
[1732934836364,0.002,96638.0,96637.0,0.14328182]
[1732934836643,0.10408595,96654.0,96638.0,0.517392]
[1732934836864,0.01099308,96651.0,96646.0,0.103469]
[1732934837082,0.20691,96660.0,96647.0,0.04035424]
[1732934837323,0.103452,96663.0,96659.0,0.03]
[1732934837525,0.01,96670.0,96666.0,0.03]
[1732934838001,0.12442714,96670.0,96667.0,0.0064714]
[1732934838248,0.12442714,96670.0,96668.0,0.03682389]
[1732934838249,0.103444,96670.0,96668.0,0.03682389]
[1732934838456,0.15,96672.0,96670.0,0.02]
[1732934838634,0.253442,96672.0,96671.0,0.0264714]
[1732934838868,5.981e-05,96672.0,96671.0,0.0264714]
[1732934839075,0.10350181,96672.0,96671.0,0.0264714]
[1732934839282,5.981e-05,96672.0,96671.0,0.0264714]
[1732934839485,0.00068376,96672.0,96671.0,0.0264714]
[1732934839697,0.10350181,96672.0,96671.0,0.0264714]
[1732934839901,0.10412576,96672.0,96671.0,0.0264714]
[1732934840112,0.10350181,96672.0,96671.0,0.0264714]
[1732934840318,0.25350181,96672.0,96671.0,0.0294714]
[1732934840550,0.15005981,96672.0,96671.0,0.0294714]
[1732934840786,0.15005981,96672.0,96671.0,0.0304714]
[1732934841007,0.25350181,96672.0,96671.0,0.0304714]
[1732934843109,0.25412576,96672.0,96671.0,0.0304714]
[1732934843319,0.35697097,96672.0,96671.0,0.024]
[1732934843965,0.35197097,96672.0,96671.0,0.024]
[1732934844725,0.35197097,96672.0,96671.0,0.03047068]
[1732934845998,0.35197097,96672.0,96671.0,0.024]
[1732934846956,0.24852897,96672.0,96658.0,0.0303533]
[1732934847157,0.103454,96661.0,96660.0,0.02]
[1732934847377,0.103454,96661.0,96660.0,0.03682409]
[1732934849206,0.103454,96661.0,96660.0,0.03982409]
[1732934849815,0.103454,96661.0,96660.0,0.03682409]
[1732934850026,0.103454,96661.0,96660.0,0.03982409]
[1732934850448,0.103454,96661.0,96660.0,0.03682409]
[1732934850732,0.103454,96661.0,96660.0,0.03982409]
[1732934852759,0.103454,96661.0,96660.0,0.03682409]
[1732934852907,0.103454,96661.0,96660.0,0.03982409]
[1732934853322,0.103454,96661.0,96660.0,0.03682409]
[1732934853514,0.103454,96661.0,96660.0,0.02]
[1732934853711,0.206904,96663.0,96661.0,0.02]
[1732934853913,0.32151595,96664.0,96663.0,0.02]
[1732934854226,0.32151595,96664.0,96663.0,0.03682423]
[1732934857187,0.32251595,96664.0,96663.0,0.03682423]
[1732934857412,0.32251595,96664.0,96663.0,0.03882423]
[1732934857899,0.32351595,96664.0,96663.0,0.03682423]
[1732934858102,0.32251595,96664.0,96663.0,0.03682423]
[1732934858308,0.32351595,96664.0,96663.0,0.03882423]
[1732934858532,0.32524635,96664.0,96663.0,0.03882423]
[1732934858730,0.32324635,96664.0,96663.0,0.03882423]
[1732934858932,0.32424635,96664.0,96663.0,0.03882423]
[1732934859558,0.32424635,96664.0,96663.0,0.03682423]
[1732934860119,0.32424635,96664.0,96663.0,0.022]
[1732934860324,0.32424635,96664.0,96663.0,0.03882431]
[1732934860737,0.32324635,96664.0,96663.0,0.03882431]
[1732934861171,0.32424635,96664.0,96663.0,0.03882431]
[1732934861375,0.32324635,96664.0,96663.0,0.03882431]
[1732934861583,0.32424635,96664.0,96663.0,0.03882431]
[1732934862453,0.32424635,96664.0,96663.0,0.05176585]
[1732934862672,0.32424635,96664.0,96663.0,0.05176577]
[1732934862914,0.32424635,96664.0,96663.0,0.0517658]
[1732934863549,0.32424635,96664.0,96663.0,0.05176604]
[1732934863997,0.32424635,96664.0,96663.0,0.03882413]
[1732934864416,0.32424635,96664.0,96663.0,0.05176604]
[1732934866178,0.11734335,96664.0,96663.0,0.05176604]
[1732934867426,0.11734335,96664.0,96663.0,0.06066067]
[1732934867866,0.11734335,96664.0,96663.0,0.05176604]
[1732934868693,0.11734335,96664.0,96663.0,0.06066067]
[1732934869661,0.01389235,96664.0,96663.0,0.06066067]
[1732934869885,0.11734335,96664.0,96663.0,0.05176604]
[1732934870803,0.01389235,96664.0,96663.0,0.12916604]
[1732934871055,0.0027304,96664.0,96663.0,0.23261804]
[1732934871266,0.0027304,96664.0,96663.0,0.23261692]
[1732934872375,0.0027304,96664.0,96663.0,0.12916492]
[1732934872597,0.0027304,96664.0,96663.0,0.23261692]
[1732934873639,0.0027304,96664.0,96663.0,0.23061692]
[1732934873848,0.0017304,96664.0,96663.0,0.23061692]
[1732934874053,0.0017304,96664.0,96663.0,0.23261692]
[1732934874274,0.0017304,96664.0,96663.0,0.23761692]
[1732934874730,0.0017304,96664.0,96663.0,0.23761512]
[1732934875655,0.0017304,96664.0,96663.0,0.23561512]
[1732934876121,0.0017304,96664.0,96663.0,0.24061512]
[1732934881072,0.0017304,96664.0,96663.0,0.210852]
[1732934881531,0.0017304,96664.0,96663.0,0.24061567]
[1732934884480,0.0017304,96664.0,96663.0,0.28911567]
[1732934884957,0.0017304,96664.0,96663.0,0.70009783]
[1732934885196,0.0017304,96672.0,96671.0,0.250043]
[1732934885428,0.0017304,96672.0,96671.0,0.27333631]
[1732934885655,0.0017304,96672.0,96671.0,0.27980667]
[1732934885873,0.0017304,96672.0,96671.0,0.38265188]
[1732934886999,0.0017304,96672.0,96671.0,0.38765188]
[1732934887938,0.0017304,96672.0,96671.0,0.39665188]
[1732934888648,0.0017304,96672.0,96671.0,0.40102793]
[1732934888884,0.00196606,96674.0,96673.0,0.12281705]
[1732934889163,0.00196606,96674.0,96673.0,0.41650356]
[1732934889392,0.0017306,96708.0,96677.0,0.14281305]
[1732934889625,0.0017306,96708.0,96677.0,0.71646968]
[1732934889790,0.0017306,96708.0,96677.0,0.71463947]
[1732934890016,0.0017306,96708.0,96677.0,0.40202193]
[1732934891014,0.0018653,96678.0,96677.0,0.40302193]
[1732934891828,0.0018653,96678.0,96677.0,0.40402193]
[1732934894546,0.0003259,96710.0,96709.0,0.123402]
[1732934894770,0.0003259,96710.0,96709.0,0.14669531]
[1732934895212,0.0003259,96710.0,96709.0,0.15316567]
[1732934895848,0.00038571,96710.0,96709.0,0.15816567]
[1732934897787,0.00038571,96710.0,96709.0,0.16316567]
[1732934898003,0.00038571,96710.0,96709.0,0.16315094]
[1732934901561,0.00038571,96710.0,96709.0,0.16315095]
[1732934903908,0.00038571,96710.0,96709.0,0.21348107]
[1732934904588,0.0017324,96718.0,96717.0,0.123394]
[1732934904797,0.0017324,96718.0,96717.0,0.14020862]
[1732934905010,0.0017324,96718.0,96717.0,0.15314295]
[1732934905855,0.0017324,96718.0,96717.0,0.15897289]
[1732934906290,0.0017324,96718.0,96717.0,0.15714295]
[1732934907883,0.0017324,96718.0,96717.0,0.15414295]
[1732934908125,0.0017324,96718.0,96717.0,0.15914295]
[1732934908361,0.0017324,96718.0,96717.0,0.39041805]
[1732934908579,0.0017322,96728.0,96727.0,0.123383]
[1732934908780,0.0017322,96728.0,96727.0,0.15496162]
[1732934908924,0.0017322,96728.0,96727.0,0.15313195]
[1732934909139,0.0017322,96728.0,96727.0,0.15496157]
[1732934909579,0.0017322,96728.0,96727.0,0.28566157]
[1732934909775,0.0017322,96728.0,96727.0,0.30324729]
[1732934911048,0.0017322,96728.0,96727.0,0.30083195]
[1732934913274,0.0017322,96728.0,96727.0,0.32024729]
[1732934914126,0.0017322,96728.0,96727.0,0.29049834]
[1732934915028,0.0017322,96728.0,96727.0,0.32023727]
[1732934915481,0.0017322,96728.0,96727.0,0.29049834]
[1732934916393,0.001731,96732.0,96731.0,0.103379]
[1732934916623,0.001731,96732.0,96731.0,0.15494726]
[1732934916848,0.001731,96732.0,96731.0,0.1743626]
[1732934917290,0.001731,96732.0,96731.0,0.14462397]
[1732934917513,0.001731,96732.0,96731.0,0.28420781]
[1732934917758,0.001731,96732.0,96731.0,0.68982934]
[1732934917973,0.001731,96732.0,96731.0,0.28237818]
[1732934918191,0.001731,96732.0,96731.0,0.37381284]
[1732934918409,0.0496306,96759.0,96731.0,0.37381284]
[1732934918410,0.0019306,96759.0,96736.0,0.02]
[1732934918636,0.0019306,96759.0,96758.0,0.12335]
[1732934918883,0.0019306,96759.0,96758.0,0.1621601]
[1732934919079,0.0019306,96759.0,96758.0,0.17250397]
[1732934919544,0.1289,96762.0,96758.0,0.06915397]
[1732934919844,0.1289,96762.0,96758.0,0.02]
[1732934919845,0.103349,96759.0,96758.0,0.02]
[1732934920056,0.103348,96760.0,96758.0,0.06912879]
[1732934920289,0.103348,96760.0,96759.0,0.06912879]
[1732934920534,0.103348,96760.0,96759.0,0.04973584]
[1732934920771,0.15,96761.0,96759.0,0.04973552]
[1732934921040,0.253348,96761.0,96760.0,0.04973552]
[1732934921237,0.15,96761.0,96760.0,0.04973552]
[1732934921459,0.253347,96761.0,96760.0,0.04973552]
[1732934923168,0.253347,96761.0,96760.0,0.05373552]
[1732934923864,0.253347,96761.0,96760.0,0.05673552]
[1732934927309,0.253347,96761.0,96760.0,0.05273552]
[1732934927783,0.253347,96761.0,96760.0,0.05273597]
[1732934928020,0.253347,96761.0,96760.0,0.05473597]
[1732934929053,0.253347,96761.0,96760.0,0.05173597]
[1732934929361,0.253347,96761.0,96760.0,0.05473597]
[1732934931824,0.48639221,96761.0,96760.0,0.05473597]
[1732934932035,0.61222367,96761.0,96760.0,0.05473597]
[1732934932453,0.50939221,96761.0,96760.0,0.05473597]
[1732934932701,0.50939221,96761.0,96760.0,0.05173597]
[1732934932899,0.53038554,96761.0,96760.0,0.03880729]
[1732934933131,0.53038554,96761.0,96760.0,0.04080729]
[1732934933540,0.53038554,96761.0,96760.0,0.03880729]
[1732934934426,0.53038554,96761.0,96760.0,0.03680729]
[1732934935679,0.53125034,96761.0,96760.0,0.03680729]
[1732934935894,0.53125034,96761.0,96760.0,0.03780729]
[1732934937352,0.53125034,96761.0,96760.0,0.02746434]
[1732934939347,0.53125034,96761.0,96760.0,0.001]
[1732934940880,0.276348,96760.0,96759.0,0.0017296]
[1732934941093,0.50939321,96760.0,96759.0,0.0017296]
[1732934942010,0.50939321,96760.0,96759.0,0.0027296]
[1732934947261,0.51025801,96760.0,96759.0,0.0027296]
[1732934952812,0.35705801,96760.0,96759.0,0.0027296]
[1732934953310,0.20705801,96760.0,96759.0,0.0027296]
[1732934953532,0.20705801,96760.0,96759.0,0.02919512]
[1732934953747,0.20705801,96760.0,96759.0,0.03953916]
[1732934953981,0.20705801,96760.0,96759.0,0.03853916]
[1732934954568,0.35705801,96760.0,96759.0,0.02819512]
[1732934954755,0.35705801,96760.0,96759.0,0.02919512]
[1732934955181,0.35705801,96760.0,96759.0,0.03953911]
[1732934961492,0.35705801,96760.0,96759.0,0.03953855]
[1732934967889,0.35705801,96760.0,96759.0,0.05246846]
[1732934968338,0.0008648,96760.0,96759.0,0.05246846]
[1732934968550,0.2542128,96760.0,96759.0,0.05246623]
[1732934969723,0.2542128,96760.0,96759.0,0.05146623]
[1732934969940,0.2542128,96760.0,96759.0,0.05346623]
[1732934970125,0.2542128,96760.0,96759.0,0.05546623]
[1732934970480,0.2542128,96760.0,96759.0,0.05346623]
[1732934970700,0.2542128,96760.0,96759.0,0.05646623]
[1732934971163,0.2542128,96760.0,96759.0,0.05346623]
[1732934971594,0.2542128,96760.0,96759.0,0.05546623]
[1732934971836,0.2542128,96760.0,96759.0,0.05346623]
[1732934972069,0.2542128,96760.0,96759.0,0.05346572]
[1732934972765,0.2542128,96760.0,96759.0,0.05246572]
[1732934972949,0.2542128,96760.0,96759.0,0.05546572]
[1732934973608,0.0008648,96760.0,96759.0,0.15881472]
[1732934973843,0.0008648,96760.0,96759.0,0.23081472]
[1732934974050,0.0008648,96760.0,96759.0,0.23381472]
[1732934974683,0.0008648,96760.0,96759.0,0.23081472]
[1732934974892,0.0008648,96760.0,96759.0,0.22981472]
[1732934975737,0.0008648,96760.0,96759.0,0.23281472]
[1732934978394,0.0008648,96760.0,96759.0,0.12946572]
[1732934978660,0.1042128,96760.0,96759.0,0.05846572]
[1732934979310,0.1042128,96760.0,96759.0,0.05446572]
[1732934979970,0.1042128,96760.0,96759.0,0.05646572]
[1732934990739,0.1042128,96760.0,96759.0,0.05346572]
[1732934990940,0.1042128,96760.0,96759.0,0.05646572]
[1732934991648,0.1042128,96760.0,96759.0,0.05346572]
[1732934991854,0.1042128,96760.0,96759.0,0.05646572]
[1732934992236,0.1042128,96760.0,96759.0,0.05446572]
[1732934992393,0.1042128,96760.0,96759.0,0.05246572]
[1732934992950,0.1042128,96760.0,96759.0,0.05246497]
[1732934993623,0.1042128,96760.0,96759.0,0.05546497]
[1732934994912,0.1042128,96760.0,96759.0,0.06406431]
[1732934995319,0.1042128,96760.0,96759.0,0.05546497]
[1732934999796,0.1042128,96760.0,96759.0,0.04512223]
[1732935000009,0.1042128,96760.0,96759.0,0.05546497]
[1732935000681,0.1042128,96760.0,96759.0,0.03607234]
[1732935000900,0.1042128,96760.0,96759.0,0.05546497]
[1732935006810,0.1042128,96760.0,96759.0,0.06406973]
[1732935008497,0.1042128,96760.0,96759.0,0.06407248]
[1732935008958,0.1042128,96760.0,96759.0,0.05546497]
[1732935009275,0.1042128,96760.0,96759.0,0.05546613]
[1732935011354,0.1042128,96760.0,96759.0,0.06407501]
[1732935012426,0.1042128,96760.0,96759.0,0.05546613]
[1732935012857,0.1042128,96760.0,96759.0,0.06407501]
[1732935013076,0.1042128,96760.0,96759.0,0.10096613]
[1732935013288,0.1042128,96760.0,96759.0,0.18036613]
[1732935013934,0.1042128,96760.0,96759.0,0.17636613]
[1732935014216,0.1042128,96760.0,96759.0,0.17936613]
[1732935014424,0.1042128,96760.0,96759.0,0.18336613]
[1732935016172,0.1042128,96760.0,96759.0,0.1833653]
[1732935016938,0.1042128,96760.0,96759.0,0.19197224]
[1732935018651,0.1042128,96760.0,96759.0,0.1833653]
[1732935022857,0.1042128,96760.0,96759.0,0.1833653]
[1732935024571,0.1042128,96760.0,96759.0,0.1039653]
[1732935026318,0.1042128,96760.0,96759.0,0.0584653]
[1732935029846,0.1042128,96760.0,96759.0,0.05846517]
[1732935030171,0.1042128,96760.0,96759.0,0.05446517]
[1732935030401,0.1042128,96760.0,96759.0,0.05646517]
[1732935030624,0.36675075,96760.0,96759.0,0.04353666]
[1732935030841,0.36675075,96760.0,96759.0,0.03319385]
[1732935030842,0.44665075,96760.0,96759.0,0.03319385]
[1732935031086,0.49315075,96760.0,96759.0,0.03119385]
[1732935031539,0.49315075,96760.0,96759.0,0.0217296]
[1732935031707,0.48345801,96760.0,96759.0,0.0217296]
[1732935032134,0.48345801,96760.0,96759.0,0.0257296]
[1732935032708,0.48345801,96760.0,96759.0,0.0010596]
[1732935032982,0.48345801,96760.0,96738.0,0.03]
[1732935032983,0.25337,96739.0,96738.0,0.03]
[1732935033117,0.25337,96739.0,96738.0,0.04681219]
[1732935033987,0.25337,96739.0,96738.0,0.03646623]
[1732935034639,0.25337,96739.0,96738.0,0.03846623]
[1732935035730,0.25337,96739.0,96738.0,0.04146623]
[1732935038726,0.25337,96739.0,96738.0,0.035]
[1732935038896,0.25337,96739.0,96738.0,0.04146644]
[1732935039661,0.26450306,96739.0,96738.0,0.04146644]
[1732935039921,0.26450306,96739.0,96738.0,0.04319604]
[1732935040152,0.26450306,96739.0,96738.0,0.04966263]
[1732935040399,0.36734827,96739.0,96738.0,0.04319604]
[1732935041116,0.36734827,96739.0,96738.0,0.04966263]
[1732935041331,0.36734827,96739.0,96738.0,0.04119604]
[1732935041556,0.36734827,96739.0,96738.0,0.03819604]
[1732935041770,0.36834827,96739.0,96738.0,0.03919604]
[1732935050031,0.36834827,96739.0,96738.0,0.0027296]
[1732935050249,0.36834827,96739.0,96738.0,0.0327296]
[1732935051108,0.36834827,96739.0,96738.0,0.03919618]
[1732935051535,0.26550306,96739.0,96738.0,0.03919618]
[1732935052004,0.26550306,96739.0,96738.0,0.0495421]
[1732935052242,0.26550306,96739.0,96738.0,0.0485421]
[1732935052680,0.26550306,96739.0,96738.0,0.0495421]
[1732935053171,0.25337,96739.0,96738.0,0.09784187]
[1732935053377,0.25337,96739.0,96738.0,0.18064187]
[1732935053620,0.25437,96739.0,96738.0,0.18064187]
[1732935053839,0.25337,96739.0,96738.0,0.18064187]
[1732935054487,0.25337,96739.0,96738.0,0.18364187]
[1732935054697,0.25337,96739.0,96738.0,0.18564187]
[1732935054932,0.25337,96739.0,96738.0,0.18064187]
[1732935055143,0.25337,96739.0,96738.0,0.18264187]
[1732935055351,0.25337,96739.0,96738.0,0.18664187]
[1732935056627,0.25337,96739.0,96738.0,0.18464187]
[1732935056845,0.25337,96739.0,96738.0,0.18764187]
[1732935057063,0.25337,96739.0,96738.0,0.18464187]
[1732935057428,0.25337,96739.0,96738.0,0.18764187]
[1732935057646,0.25337,96739.0,96738.0,0.18064187]
[1732935058049,0.25337,96739.0,96738.0,0.18864187]
[1732935058498,0.25337,96739.0,96738.0,0.18464187]
[1732935058661,0.25337,96739.0,96738.0,0.18864187]
[1732935059283,0.25337,96739.0,96738.0,0.18464187]
[1732935059504,0.25337,96739.0,96738.0,0.18564187]
[1732935059720,0.25337,96739.0,96738.0,0.18964187]
[1732935060407,0.25337,96739.0,96738.0,0.20257397]
[1732935062000,0.15,96741.0,96738.0,0.19757397]
[1732935062215,0.206725,96747.0,96740.0,0.03]
[1732935062216,0.15,96742.0,96740.0,0.03]
[1732935062452,0.15,96742.0,96741.0,0.05974437]
[1732935062667,0.15,96742.0,96741.0,0.04681088]
[1732935062892,0.253367,96742.0,96741.0,0.0597421]
[1732935063086,0.253367,96742.0,96741.0,0.05974189]
[1732935063301,0.103364,96746.0,96741.0,0.05974189]
[1732935063519,0.103365,96744.0,96743.0,0.0385558]
[1732935063734,0.103365,96744.0,96743.0,0.05536643]
[1732935063950,0.103365,96745.0,96743.0,0.05974189]
[1732935064177,0.0001805,96748.0,96747.0,0.03]
[1732935064397,0.0001805,96748.0,96747.0,0.16131199]
[1732935064680,0.0001805,96748.0,96747.0,0.28713327]
[1732935064888,0.0001805,96748.0,96747.0,0.28530389]
[1732935065537,0.0001805,96748.0,96747.0,0.28730389]
[1732935066397,0.0001805,96748.0,96747.0,0.18394189]
[1732935066635,0.0001805,96748.0,96747.0,0.19294189]
[1732935066887,0.0001805,96748.0,96747.0,0.19094189]
[1732935067086,0.0001805,96748.0,96747.0,0.19794189]
[1732935067345,0.0001805,96748.0,96747.0,0.1997712]
[1732935067570,0.0001805,96748.0,96747.0,0.3031332]
[1732935067737,0.0001805,96748.0,96747.0,0.19794189]
[1732935068762,0.0001805,96748.0,96747.0,0.1997712]
[1732935069776,0.0001805,96748.0,96747.0,0.30312819]
[1732935070027,0.0001805,96748.0,96747.0,0.19793688]
[1732935070231,0.0001805,96748.0,96747.0,0.30312816]
[1732935070437,0.0001805,96748.0,96747.0,0.30129888]
[1732935071261,0.0001805,96748.0,96747.0,0.19793688]
[1732935071468,0.0001805,96748.0,96747.0,0.19976619]
[1732935072291,0.0001805,96748.0,96747.0,0.30312819]
[1732935072520,0.0001805,96748.0,96747.0,0.30129888]
[1732935076947,0.0001805,96748.0,96747.0,0.31164101]
[1732935077176,0.0001805,96748.0,96747.0,0.30129775]
[1732935077401,0.0001805,96748.0,96747.0,0.19793575]
[1732935077628,0.0001805,96748.0,96747.0,0.19976507]
[1732935077814,0.0001805,96748.0,96747.0,0.19793575]
[1732935078092,0.0001805,96748.0,96747.0,0.19976502]
[1732935078276,0.0001805,96748.0,96747.0,0.30312702]
[1732935078527,0.0001805,96748.0,96747.0,0.30129775]
[1732935079639,0.103354,96755.0,96747.0,0.30129775]
[1732935079897,0.103352,96757.0,96753.0,0.03850929]
[1732935080163,0.103353,96756.0,96755.0,0.03]
[1732935080367,0.103353,96756.0,96755.0,0.05973575]
[1732935081278,0.2075651,96759.0,96755.0,0.05973575]
[1732935081279,0.103351,96758.0,96755.0,0.05973575]
[1732935081519,0.2075651,96759.0,96757.0,0.03]
[1732935081757,0.10335,96758.0,96757.0,0.03]
[1732935081973,0.10335,96758.0,96757.0,0.05973557]
[1732935083232,0.10335,96758.0,96757.0,0.06373557]
[1732935083859,0.10335,96758.0,96757.0,0.06873557]
[1732935087089,0.1042151,96759.0,96757.0,0.07724486]
[1732935087292,0.1042151,96759.0,96758.0,0.05973557]
[1732935087521,0.0008651,96759.0,96758.0,0.05973557]
[1732935087738,0.0008651,96759.0,96758.0,0.11784486]
[1732935087948,0.0008651,96759.0,96758.0,0.10933557]
[1732935088366,0.0008651,96759.0,96758.0,0.21268557]
[1732935088578,0.0008651,96759.0,96758.0,0.10933557]
[1732935089008,0.0008651,96759.0,96758.0,0.21268557]
[1732935089842,0.0008651,96759.0,96758.0,0.21668557]
[1732935090055,0.0008651,96759.0,96758.0,0.22068557]
[1732935090300,0.0008651,96759.0,96758.0,0.20775638]
[1732935090573,0.0008651,96759.0,96758.0,0.22068437]
[1732935090776,0.0008651,96759.0,96758.0,0.11733437]
[1732935092670,0.0008651,96759.0,96758.0,0.22068437]
[1732935093848,0.0008651,96759.0,96758.0,0.22068316]
[1732935096328,0.0008651,96759.0,96758.0,0.40422837]
[1732935096542,8.665e-05,96762.0,96760.0,0.143348]
[1732935096759,8.665e-05,96762.0,96760.0,0.40805517]
[1732935096972,8.665e-05,96762.0,96760.0,0.40622637]
[1732935098354,8.665e-05,96762.0,96760.0,0.41622637]
[1732935098561,8.665e-05,96762.0,96760.0,0.82363797]
[1732935098992,8.665e-05,96762.0,96760.0,0.82463797]
[1732935099198,8.665e-05,96762.0,96760.0,0.41722637]
[1732935099719,8.665e-05,96762.0,96760.0,0.41822637]
[1732935100120,8.665e-05,96762.0,96760.0,0.38849321]
[1732935100348,8.665e-05,96762.0,96760.0,0.41822029]
[1732935100577,8.665e-05,96762.0,96760.0,0.41175788]
[1732935100827,8.665e-05,96762.0,96760.0,0.41822029]
[1732935101091,8.665e-05,96762.0,96760.0,0.39883306]
[1732935101337,8.665e-05,96762.0,96760.0,0.40788045]
[1732935101591,8.665e-05,96762.0,96760.0,0.37834762]
[1732935101820,8.665e-05,96762.0,96760.0,0.19429962]
[1732935102272,8.665e-05,96762.0,96760.0,0.16457231]
[1732935102525,8.665e-05,96762.0,96760.0,0.19430443]
[1732935102788,8.665e-05,96762.0,96760.0,0.30417063]
[1732935103027,0.1042118,96761.0,96760.0,0.09545922]
[1732935103473,0.1042118,96761.0,96760.0,0.08945922]
[1732935103688,0.1042118,96761.0,96760.0,0.09745922]
[1732935103902,0.1042118,96761.0,96760.0,0.10545922]
[1732935104134,0.0008648,96761.0,96760.0,0.10545922]
[1732935104348,0.1042118,96761.0,96760.0,0.10545922]
[1732935104610,0.1042118,96761.0,96760.0,0.11397742]
[1732935104825,0.1042118,96761.0,96760.0,0.09745922]
[1732935105285,0.1052118,96761.0,96760.0,0.09845922]
[1732935105733,0.1062118,96761.0,96760.0,0.10745922]
[1732935106171,0.1062118,96761.0,96760.0,0.1074618]
[1732935107809,0.1062118,96761.0,96760.0,0.0777271]
[1732935108024,0.1062118,96761.0,96760.0,0.10746182]
[1732935109632,0.1062118,96761.0,96760.0,0.09065584]
[1732935109886,0.1881118,96761.0,96760.0,0.09453446]
[1732935111544,0.3381118,96761.0,96760.0,0.09453446]
[1732935111976,0.3381118,96761.0,96760.0,0.08419147]
[1732935112624,0.3381118,96761.0,96760.0,0.05446437]
[1732935113047,0.3851118,96761.0,96760.0,0.05446437]
[1732935118679,0.3851118,96761.0,96760.0,0.05446497]
[1732935120964,0.48795701,96761.0,96760.0,0.05446497]
[1732935121458,0.48795701,96761.0,96760.0,0.048]
[1732935121891,0.48695701,96761.0,96760.0,0.0407302]
[1732935122129,0.3831118,96761.0,96760.0,0.0017302]
[1732935122340,0.2542118,96761.0,96760.0,0.0017302]
[1732935122565,0.2592118,96761.0,96760.0,0.0017302]
[1732935123229,0.2542118,96761.0,96760.0,0.0017302]
[1732935123434,0.2572118,96761.0,96760.0,0.0017302]
[1732935123659,0.36005701,96761.0,96760.0,0.0017302]
[1732935123875,0.40705701,96761.0,96760.0,0.0017302]
[1732935124089,0.48895701,96761.0,96760.0,0.0017302]
[1732935124306,0.48824394,96761.0,96760.0,0.0017302]
[1732935124815,0.48524394,96761.0,96760.0,0.0017302]
[1732935125275,0.48524394,96761.0,96760.0,0.0027302]
[1732935125733,0.48824394,96761.0,96760.0,0.0017302]
[1732935125979,0.48824394,96761.0,96758.0,0.0017302]
[1732935125980,0.276349,96759.0,96758.0,4e-07]
[1732935126228,0.50159421,96759.0,96758.0,4e-07]
[1732935127598,0.50159421,96759.0,96758.0,0.0010004]
[1732935127832,0.50159421,96759.0,96758.0,4e-07]
[1732935128063,0.50159421,96759.0,96753.0,0.03]
[1732935128064,0.15,96758.0,96753.0,0.03]
[1732935128288,0.375754,96754.0,96753.0,0.03]
[1732935128503,0.47859921,96754.0,96747.0,0.0017302]
[1732935128731,0.103361,96748.0,96747.0,0.0017302]
[1732935128922,0.20620621,96748.0,96747.0,0.0017302]
[1732935129683,0.20620621,96748.0,96747.0,0.0027302]
[1732935130649,0.35620621,96748.0,96747.0,0.0027302]
[1732935131416,0.36120621,96748.0,96747.0,0.0027302]
[1732935131653,0.36120621,96748.0,96747.0,0.0017302]
[1732935132047,0.36520621,96748.0,96747.0,0.0017302]
[1732935132468,0.38587383,96748.0,96747.0,0.0017302]
[1732935132673,0.36520621,96748.0,96747.0,0.0017302]
[1732935134092,0.35620621,96748.0,96747.0,0.0017302]
[1732935134307,0.35620621,96748.0,96747.0,0.0027302]
[1732935134533,0.35920621,96748.0,96747.0,0.0027302]
[1732935134742,0.36746313,96748.0,96747.0,0.0017302]
[1732935134948,0.36846313,96748.0,96747.0,0.0017302]
[1732935135169,0.36846313,96748.0,96747.0,0.0037302]
[1732935137126,0.26561792,96748.0,96747.0,0.0037302]
[1732935137332,0.11561792,96748.0,96747.0,0.04019602]
[1732935137672,0.11561792,96748.0,96747.0,0.05054071]
[1732935137673,0.104361,96748.0,96747.0,0.05054071]
[1732935138161,0.104361,96748.0,96747.0,0.14637108]
[1732935138389,0.103361,96748.0,96747.0,0.13144071]
[1732935138625,0.103361,96748.0,96747.0,0.14437069]
[1732935138854,0.104361,96748.0,96747.0,0.14437069]
[1732935139311,0.104361,96748.0,96747.0,0.14637069]
[1732935141074,0.104361,96748.0,96747.0,0.14937069]
[1732935141285,0.104361,96748.0,96747.0,0.14737069]